bitfinex/quotes_ETHUSD_20260110
["timestamp","ask_amount","ask_price","bid_price","bid_amount"]
[1768082462399,0.04151075,3085.6,3085.2,0.00080008]
[1768082462400,0.95177542,3085.6,3085.2,0.00080008]
[1768082463098,0.04151075,3085.6,3085.2,0.00080008]
[1768082463299,0.001,3085.6,3085.2,0.00080008]
[1768082464384,0.98802066,3085.6,3085.2,0.00080008]
[1768082465292,0.70001803,3085.5,3085.2,0.00080008]
[1768082473788,1.68703869,3085.5,3085.2,0.00080008]
[1768082473988,0.70001803,3085.4,3085.2,0.00080008]
[1768082474188,0.98702066,3085.5,3085.2,0.00080008]
[1768082476485,0.001,3085.6,3085.2,0.00080008]
[1768082479385,0.98802066,3085.6,3085.2,0.00080008]
[1768082486122,0.6994404,3085.5,3085.2,0.00080008]
[1768082507241,0.6994404,3085.4,3085.2,0.00080008]
[1768082507404,0.94868562,3085.6,3085.2,0.00080008]
[1768082507605,0.41894492,3085.5,3085.2,0.00080008]
[1768082509277,0.001,3085.6,3085.2,0.00080008]
[1768082512042,0.001,3085.6,3085.2,0.9026522]
[1768082518348,0.001,3085.6,3085.2,0.00080008]
[1768082519348,0.69959814,3085.5,3085.2,0.00080008]
[1768082519926,0.69959814,3085.5,3085.2,0.9637773]
[1768082520131,0.001,3085.6,3085.2,0.9637773]
[1768082520665,0.001,3085.6,3085.3,0.98888689]
[1768082530054,0.001,3085.6,3085.3,0.96297722]
[1768082532876,0.70039171,3085.6,3085.3,0.96297722]
[1768082533076,0.001,3085.6,3085.3,0.96297722]
[1768082534647,0.70037721,3085.6,3085.3,0.96297722]
[1768082534844,0.001,3085.6,3085.3,1.15844364]
[1768082535982,0.70037102,3085.6,3085.3,1.15844364]
[1768082536186,0.001,3085.6,3085.3,1.15844364]
[1768082537248,0.70035996,3085.6,3085.3,1.15844364]
[1768082537542,0.001,3085.6,3085.3,1.15844364]
[1768082538548,0.7003605,3085.6,3085.3,1.15844364]
[1768082538892,0.001,3085.6,3085.3,1.15844364]
[1768082539704,0.70036747,3085.6,3085.3,1.15844364]
[1768082539904,0.001,3085.6,3085.3,1.15844364]
[1768082541292,0.70037667,3085.6,3085.3,1.15844364]
[1768082541493,0.001,3085.6,3085.3,1.15844364]
[1768082542204,0.7003985,3085.6,3085.3,1.15844364]
[1768082542503,0.001,3085.6,3085.3,1.15844364]
[1768082543206,0.70041338,3085.6,3085.3,1.15844364]
[1768082543503,0.001,3085.6,3085.3,1.15844364]
[1768082544115,0.70043065,3085.6,3085.3,1.15844364]
[1768082544407,0.001,3085.6,3085.3,0.19546642]
[1768082544982,0.70045137,3085.6,3085.3,0.19546642]
[1768082545178,0.21361137,3085.5,3085.3,0.19546642]
[1768082545470,3.24135248,3085.9,3085.3,0.19546642]
[1768082545671,4.18379133,3086.0,3085.5,0.00080016]
[1768082548029,4.78379133,3086.0,3085.5,0.00080016]
[1768082548230,4.18379133,3086.0,3085.5,0.00080016]
[1768082552655,0.001,3085.7,3085.5,0.00080016]
[1768082557657,0.70064394,3085.7,3085.5,0.00080016]
[1768082557950,0.69964394,3085.6,3085.5,0.00080016]
[1768082558139,0.001,3085.7,3085.5,0.00080016]
[1768082558519,0.70064394,3085.7,3085.5,0.00080016]
[1768082558732,0.69964394,3085.6,3085.5,0.00080016]
[1768082559132,0.001,3085.7,3085.5,0.00080016]
[1768082559336,0.70064394,3085.7,3085.5,0.00080016]
[1768082559517,0.69964394,3085.6,3085.5,0.00080016]
[1768082559950,0.001,3085.7,3085.5,0.00080016]
[1768082560131,0.70064394,3085.7,3085.5,0.00080016]
[1768082560316,0.69964394,3085.6,3085.5,0.00080016]
[1768082560724,0.001,3085.7,3085.5,0.00080016]
[1768082560923,0.70064394,3085.7,3085.5,0.00080016]
[1768082561153,0.69964394,3085.6,3085.5,0.00080016]
[1768082561559,0.001,3085.7,3085.5,0.00080016]
[1768082561763,0.70064394,3085.7,3085.5,0.00080016]
[1768082561931,0.69964394,3085.6,3085.5,0.00080016]
[1768082562126,0.001,3085.7,3085.5,0.00080016]
[1768082562326,0.70064394,3085.7,3085.5,0.00080016]
[1768082562625,0.69964394,3085.6,3085.5,0.00080016]
[1768082563235,0.001,3085.7,3085.5,0.00080016]
[1768082563434,0.70064394,3085.7,3085.5,0.00080016]
[1768082563655,0.69964394,3085.6,3085.5,0.00080016]
[1768082563934,0.001,3085.7,3085.5,0.00080016]
[1768082564134,0.70064394,3085.7,3085.5,0.00080016]
[1768082564335,0.69964394,3085.6,3085.5,0.00080016]
[1768082564535,0.69964394,3085.6,3085.5,0.00280016]
[1768082564733,0.001,3085.7,3085.5,0.00280016]
[1768082564964,0.70064394,3085.7,3085.5,0.00280016]
[1768082565160,0.69964394,3085.6,3085.5,0.00280016]
[1768082565462,0.001,3085.7,3085.5,0.00280016]
[1768082565662,0.70064394,3085.7,3085.5,0.00280016]
[1768082565881,0.69964394,3085.6,3085.5,0.00280016]
[1768082566036,0.001,3085.7,3085.5,0.00280016]
[1768082566236,0.70064394,3085.7,3085.5,0.00280016]
[1768082566435,0.69964394,3085.6,3085.5,0.00280016]
[1768082566637,0.001,3085.7,3085.5,0.00280016]
[1768082566842,0.70064394,3085.7,3085.5,0.00280016]
[1768082567064,0.69964394,3085.6,3085.5,0.00280016]
[1768082567464,0.001,3085.7,3085.5,0.00280016]
[1768082567669,0.70064394,3085.7,3085.5,0.00280016]
[1768082567846,0.69964394,3085.6,3085.5,0.00280016]
[1768082568160,0.001,3085.7,3085.5,0.00280016]
[1768082568368,0.70064394,3085.7,3085.5,0.00280016]
[1768082568556,0.69964394,3085.6,3085.5,0.00280016]
[1768082568954,0.001,3085.7,3085.5,0.00280016]
[1768082569159,0.70064394,3085.7,3085.5,0.00280016]
[1768082569361,0.69964394,3085.6,3085.5,0.00280016]
[1768082569745,0.001,3085.7,3085.5,0.00280016]
[1768082569948,0.70064394,3085.7,3085.5,0.00280016]
[1768082570145,0.69964394,3085.6,3085.5,0.00280016]
[1768082570342,0.001,3085.7,3085.5,0.00280016]
[1768082570541,0.70064394,3085.7,3085.5,0.00280016]
[1768082570843,0.69964394,3085.6,3085.5,0.00280016]
[1768082571236,0.001,3085.7,3085.5,0.00280016]
[1768082571467,0.70064394,3085.7,3085.5,0.00280016]
[1768082571643,0.69964394,3085.6,3085.5,0.00280016]
[1768082571843,0.001,3085.7,3085.5,0.00280016]
[1768082572055,0.70064394,3085.7,3085.5,0.00280016]
[1768082572273,0.69964394,3085.6,3085.5,0.00280016]
[1768082572670,0.001,3085.7,3085.5,0.00280016]
[1768082572976,0.70064394,3085.7,3085.5,0.00280016]
[1768082573174,0.69964394,3085.6,3085.5,0.00280016]
[1768082573563,0.001,3085.7,3085.5,0.00280016]
[1768082573763,0.70064394,3085.7,3085.5,0.00280016]
[1768082573977,0.69964394,3085.6,3085.5,0.00280016]
[1768082574265,0.001,3085.7,3085.5,0.00280016]
[1768082574477,0.70064394,3085.7,3085.5,0.00280016]
[1768082574687,0.69964394,3085.6,3085.5,0.00280016]
[1768082574883,0.001,3085.7,3085.5,0.00280016]
[1768082575194,0.70064394,3085.7,3085.5,0.00280016]
[1768082575374,0.69964394,3085.6,3085.5,0.00280016]
[1768082575570,0.001,3085.7,3085.5,0.00280016]
[1768082575896,0.70064394,3085.7,3085.5,0.00280016]
[1768082576095,0.69964394,3085.6,3085.5,0.00280016]
[1768082576393,0.001,3085.7,3085.5,0.00280016]
[1768082576565,0.70064394,3085.7,3085.5,0.00280016]
[1768082576760,0.69964394,3085.6,3085.5,0.00280016]
[1768082576977,0.001,3085.7,3085.5,0.00280016]
[1768082577176,0.70064394,3085.7,3085.5,0.00280016]
[1768082577376,0.69964394,3085.6,3085.5,0.00280016]
[1768082578099,0.001,3085.7,3085.5,0.00280016]
[1768082578266,0.70064394,3085.7,3085.5,0.00280016]
[1768082578469,0.69964394,3085.6,3085.5,0.00280016]
[1768082578678,0.001,3085.7,3085.5,0.00280016]
[1768082579004,0.70064394,3085.7,3085.5,0.00280016]
[1768082579296,0.69964394,3085.6,3085.2,0.00080008]
[1768082580992,0.69947513,3085.5,3085.2,0.00080008]
[1768082581305,0.69947513,3085.4,3085.2,0.00080008]
[1768082581510,0.001,3085.7,3085.2,0.00080008]
[1768082581671,1.64917436,3085.6,3085.2,0.00080008]
[1768082581872,1.68968643,3085.5,3085.2,0.00080008]
[1768082582101,0.69931437,3085.4,3085.2,0.00080008]
[1768082586012,0.69731438,3085.4,3085.2,0.00080008]
[1768082591725,0.69731438,3085.4,3085.1,0.002]
[1768082595379,0.94985999,3085.5,3085.1,0.002]
[1768082596526,1.36910662,3085.5,3085.1,0.002]
[1768082598007,0.69845569,3085.4,3085.1,0.002]
[1768082608423,0.69845569,3085.3,3085.1,0.002]
[1768082608618,0.69845569,3085.2,3085.1,0.002]
[1768082609017,0.69845569,3085.4,3085.1,0.002]
[1768082609218,0.69845569,3085.3,3085.1,0.002]
[1768082609418,0.69845569,3085.2,3085.1,0.002]
[1768082609710,0.69845569,3085.4,3085.1,0.002]
[1768082610021,0.69845569,3085.3,3085.1,0.002]
[1768082610221,0.69845569,3085.2,3085.1,0.002]
[1768082610421,0.69845569,3085.4,3085.1,0.002]
[1768082610622,0.69845569,3085.3,3085.1,0.002]
[1768082610812,0.69845569,3085.2,3085.1,0.002]
[1768082611015,0.69845569,3085.4,3085.1,0.002]
[1768082611218,0.69845569,3085.3,3085.1,0.002]
[1768082611411,0.69845569,3085.2,3085.1,0.002]
[1768082611807,0.94985999,3085.5,3085.1,0.002]
[1768082611808,0.69845569,3085.4,3085.1,0.002]
[1768082612012,0.69845569,3085.3,3085.1,0.002]
[1768082612408,0.69845569,3085.2,3085.1,0.002]
[1768082612608,0.69845569,3085.4,3085.1,0.002]
[1768082612812,0.69845569,3085.3,3085.1,0.002]
[1768082613035,0.69845569,3085.2,3085.1,0.002]
[1768082613441,0.69845569,3085.4,3085.1,0.002]
[1768082613751,0.69845569,3085.3,3085.1,0.002]
[1768082614045,0.69845569,3085.2,3085.1,0.002]
[1768082614241,0.94985999,3085.5,3085.1,0.002]
[1768082614242,0.69845569,3085.4,3085.1,0.002]
[1768082614425,0.69845569,3085.3,3085.1,0.002]
[1768082615848,0.69845569,3085.2,3085.1,0.002]
[1768082616347,0.69845569,3085.4,3085.1,0.002]
[1768082616515,0.69845569,3085.3,3085.1,0.002]
[1768082616716,0.69845569,3085.2,3085.1,0.002]
[1768082617146,0.69845569,3085.4,3085.1,0.002]
[1768082617354,0.69845569,3085.3,3085.1,0.002]
[1768082617655,0.69845569,3085.2,3085.1,0.002]
[1768082618054,0.69845569,3085.4,3085.1,0.002]
[1768082618352,0.69845569,3085.3,3085.1,0.002]
[1768082618553,0.69845569,3085.2,3085.1,0.002]
[1768082619023,0.69845569,3085.4,3085.1,0.002]
[1768082619224,0.69845569,3085.3,3085.1,0.002]
[1768082619424,0.69845569,3085.2,3085.1,0.002]
[1768082619724,0.69845569,3085.4,3085.1,0.002]
[1768082619924,0.69845569,3085.3,3085.1,0.002]
[1768082620126,0.69845569,3085.2,3085.1,0.002]
[1768082620326,0.69845569,3085.4,3085.1,0.002]
[1768082620538,0.69845569,3085.3,3085.1,0.002]
[1768082620745,0.69845569,3085.2,3085.1,0.002]
[1768082621147,0.69845569,3085.4,3085.1,0.002]
[1768082621355,0.69845569,3085.3,3085.1,0.002]
[1768082621559,0.69845569,3085.2,3085.1,0.002]
[1768082621954,0.69845569,3085.4,3085.1,0.002]
[1768082622130,0.69845569,3085.3,3085.1,0.002]
[1768082622458,0.69845569,3085.2,3085.1,0.002]
[1768082622857,0.69845569,3085.4,3085.1,0.002]
[1768082623057,0.69845569,3085.3,3085.1,0.002]
[1768082623259,0.69845569,3085.2,3085.1,0.002]
[1768082623640,0.69845569,3085.4,3085.1,0.002]
[1768082623840,0.69845569,3085.3,3085.1,0.002]
[1768082624040,0.69845569,3085.2,3085.1,0.002]
[1768082624436,0.69845569,3085.4,3085.1,0.002]
[1768082624653,0.69845569,3085.3,3085.1,0.002]
[1768082624833,0.69845569,3085.2,3085.1,0.002]
[1768082625240,0.69845569,3085.4,3085.1,0.002]
[1768082625444,0.69845569,3085.3,3085.1,0.002]
[1768082625644,0.69845569,3085.2,3085.1,0.002]
[1768082626030,0.69845569,3085.4,3085.1,0.002]
[1768082626236,0.69845569,3085.3,3085.1,0.002]
[1768082626466,0.69845569,3085.2,3085.1,0.002]
[1768082626965,0.69845569,3085.5,3085.1,0.002]
[1768082627131,0.69845569,3085.4,3085.1,0.002]
[1768082627333,0.69845569,3085.3,3085.1,0.002]
[1768082627554,0.69845569,3085.2,3085.1,0.002]
[1768082628235,0.69845569,3085.5,3085.1,0.002]
[1768082628465,0.69845569,3085.4,3085.1,0.002]
[1768082628764,0.69845569,3085.3,3085.1,0.002]
[1768082628964,0.69845569,3085.2,3085.1,0.002]
[1768082629366,0.69845569,3085.5,3085.1,0.002]
[1768082629580,0.69845569,3085.4,3085.1,0.002]
[1768082629739,0.69845569,3085.3,3085.1,0.002]
[1768082630040,0.69845569,3085.2,3085.1,0.002]
[1768082630445,0.69845569,3085.5,3085.1,0.002]
[1768082630650,0.69845569,3085.4,3085.1,0.002]
[1768082630861,0.69845569,3085.3,3085.1,0.002]
[1768082631063,0.69845569,3085.2,3085.1,0.002]
[1768082631458,0.69845569,3085.5,3085.1,0.002]
[1768082631663,0.69845569,3085.4,3085.1,0.002]
[1768082631969,0.69845569,3085.3,3085.1,0.002]
[1768082632266,0.69845569,3085.2,3085.1,0.002]
[1768082632634,0.69845569,3085.5,3085.1,0.002]
[1768082632834,0.69845569,3085.4,3085.1,0.002]
[1768082633068,0.69845569,3085.3,3085.1,0.002]
[1768082633267,0.69845569,3085.2,3085.1,0.002]
[1768082633642,0.69845569,3085.5,3085.1,0.002]
[1768082633842,0.69845569,3085.4,3085.1,0.002]
[1768082634063,0.69845569,3085.3,3085.1,0.002]
[1768082634265,0.69845569,3085.2,3085.1,0.002]
[1768082634590,0.69845569,3085.5,3085.1,0.002]
[1768082634772,0.69845569,3085.4,3085.1,0.002]
[1768082634972,0.00080008,3085.6,3085.1,0.002]
[1768082634973,0.69845569,3085.3,3085.1,0.002]
[1768082635174,0.69845569,3085.2,3085.1,0.002]
[1768082635670,0.69845569,3085.5,3085.1,0.002]
[1768082635872,0.69845569,3085.4,3085.1,0.002]
[1768082636061,0.69845569,3085.3,3085.1,0.002]
[1768082636262,0.69945569,3085.2,3085.1,0.002]
[1768082636568,0.001,3085.2,3085.1,0.002]
[1768082637271,0.69945569,3085.2,3085.1,0.002]
[1768082637672,0.001,3085.2,3085.1,0.002]
[1768082638371,0.69945569,3085.2,3085.1,0.002]
[1768082638736,0.001,3085.2,3085.1,0.002]
[1768082639370,0.69945569,3085.2,3085.1,0.002]
[1768082639757,0.001,3085.2,3085.1,0.002]
[1768082640375,0.69945569,3085.2,3085.1,0.002]
[1768082640677,0.001,3085.2,3085.1,0.002]
[1768082641400,0.69945569,3085.2,3085.1,0.002]
[1768082641780,0.001,3085.2,3085.1,0.002]
[1768082642377,0.69945569,3085.2,3085.1,0.002]
[1768082642699,0.001,3085.2,3085.1,0.002]
[1768082643274,0.69945569,3085.2,3085.1,0.002]
[1768082643682,0.001,3085.2,3085.1,0.002]
[1768082644696,0.70087967,3085.2,3085.1,0.002]
[1768082644867,0.001,3085.2,3085.1,0.002]
[1768082645470,0.70087967,3085.2,3085.1,0.002]
[1768082645666,0.001,3085.2,3085.1,0.002]
[1768082646295,0.70087967,3085.2,3085.1,0.002]
[1768082646683,0.001,3085.2,3085.1,0.002]
[1768082647384,0.70087967,3085.2,3085.1,0.002]
[1768082647771,0.001,3085.2,3085.1,0.002]
[1768082648493,0.70087967,3085.2,3085.1,0.002]
[1768082648877,0.001,3085.2,3085.1,0.002]
[1768082649482,0.70087967,3085.2,3085.1,0.002]
[1768082649885,0.001,3085.2,3085.1,0.002]
[1768082650466,0.70087967,3085.2,3085.1,0.002]
[1768082650780,0.001,3085.2,3085.1,0.002]
[1768082651787,0.70087711,3085.2,3085.1,0.002]
[1768082652007,0.001,3085.2,3085.1,0.002]
[1768082652612,0.70088276,3085.2,3085.1,0.002]
[1768082653101,0.001,3085.2,3085.1,0.002]
[1768082653673,0.70088276,3085.2,3085.1,0.002]
[1768082653974,0.001,3085.2,3085.1,0.002]
[1768082654575,0.70088276,3085.2,3085.1,0.002]
[1768082655004,0.001,3085.2,3085.1,0.002]
[1768082655799,0.70088276,3085.2,3085.1,0.002]
[1768082656304,0.001,3085.2,3085.1,0.002]
[1768082656997,0.70088276,3085.2,3085.1,0.002]
[1768082657398,0.001,3085.2,3085.1,0.002]
[1768082657992,0.70088276,3085.2,3085.1,0.002]
[1768082658387,0.001,3085.2,3085.1,0.002]
[1768082659115,0.70088276,3085.2,3085.1,0.002]
[1768082659634,0.001,3085.2,3085.1,0.002]
[1768082660208,0.70088276,3085.2,3085.1,0.002]
[1768082660515,0.001,3085.2,3085.1,0.002]
[1768082661195,0.70088276,3085.2,3085.1,0.002]
[1768082661796,0.001,3085.2,3085.1,0.002]
[1768082662481,0.70088276,3085.2,3085.1,0.002]
[1768082662890,0.001,3085.2,3085.1,0.002]
[1768082663522,0.70088276,3085.2,3085.1,0.002]
[1768082664315,0.001,3085.2,3085.1,0.002]
[1768082666691,0.70090263,3085.2,3085.1,0.002]
[1768082667087,0.001,3085.2,3085.1,0.002]
[1768082667782,0.70090263,3085.2,3085.1,0.002]
[1768082667988,0.001,3085.2,3085.1,0.002]
[1768082668622,0.70090263,3085.2,3085.1,0.002]
[1768082668787,0.001,3085.2,3085.1,0.002]
[1768082669620,0.70090263,3085.2,3085.1,0.002]
[1768082669982,0.001,3085.2,3085.1,0.002]
[1768082670517,0.70090263,3085.2,3085.1,0.002]
[1768082670948,0.001,3085.2,3085.1,0.002]
[1768082671292,0.70090263,3085.2,3085.1,0.002]
[1768082671704,0.001,3085.2,3085.1,0.002]
[1768082672183,0.70090263,3085.2,3085.1,0.002]
[1768082672702,0.001,3085.2,3085.1,0.002]
[1768082673207,0.70090263,3085.2,3085.1,0.002]
[1768082673602,0.001,3085.2,3085.1,0.002]
[1768082674005,0.70090263,3085.2,3085.1,0.002]
[1768082674202,0.001,3085.2,3085.1,0.002]
[1768082674624,0.70090263,3085.2,3085.1,0.002]
[1768082675535,0.001,3085.2,3085.1,0.002]
[1768082676127,0.70090263,3085.2,3085.1,0.002]
[1768082676926,0.001,3085.2,3085.1,0.002]
[1768082677232,0.70090263,3085.2,3085.1,0.002]
[1768082677590,0.001,3085.2,3085.0,0.0028]
[1768082677818,0.70090263,3085.2,3085.0,0.0028]
[1768082678012,0.69990263,3085.1,3085.0,0.0028]
[1768082678445,0.001,3085.2,3085.0,0.0028]
[1768082678828,0.70090263,3085.2,3085.0,0.0028]
[1768082679028,0.95653222,3085.0,3084.8,0.0008]
[1768082679243,0.86554612,3084.9,3084.8,0.0008]
[1768082679670,0.69990263,3084.9,3084.8,0.0008]
[1768082679856,0.12971325,3084.9,3084.8,0.0008]
[1768082680451,0.82961588,3084.9,3084.8,0.0008]
[1768082681358,0.82961588,3084.9,3084.2,1.11122978]
[1768082681359,4.07121204,3084.9,3084.2,0.002]
[1768082681556,4.07121204,3084.9,3084.2,0.95283083]
[1768082681557,1.57391044,3084.8,3084.2,0.95283083]
[1768082681761,0.69990263,3084.7,3084.2,0.95283083]
[1768082681948,0.69990263,3084.6,3084.2,0.85283083]
[1768082682144,0.69990263,3084.5,3084.2,0.85283083]
[1768082682348,0.95283083,3084.6,3084.2,0.85283083]
[1768082682548,0.69858974,3084.5,3084.2,0.85283083]
[1768082682735,0.85283083,3084.7,3084.2,0.85283083]
[1768082682944,0.69863276,3084.6,3084.2,0.85283083]
[1768082683137,0.69863276,3084.6,3084.0,0.9767405]
[1768082683441,1.80936305,3084.6,3084.0,0.02590967]
[1768082683641,1.80936305,3084.6,3084.5,0.002]
[1768082684160,0.85283083,3084.6,3084.1,0.002]
[1768082684337,1.05926714,3084.6,3084.1,0.002]
[1768082688572,0.20643631,3084.6,3084.1,0.002]
[1768082688940,0.95363083,3084.5,3084.1,0.002]
[1768082690269,0.95653222,3084.4,3084.1,0.002]
[1768082690468,0.95453223,3084.4,3084.1,0.002]
[1768082690769,1.18787636,3084.3,3084.1,0.002]
[1768082690974,1.59851905,3084.3,3083.9,0.0028]
[1768082691334,1.14734853,3084.3,3083.9,0.0028]
[1768082691537,1.18787636,3084.3,3083.9,0.0028]
[1768082691792,0.41064269,3084.2,3083.9,0.0028]
[1768082691939,1.36717491,3084.2,3083.9,0.0028]
[1768082692279,0.95653222,3084.2,3083.9,0.0028]
[1768082692582,0.95653222,3084.1,3082.8,0.99980518]
[1768082692738,0.95653222,3084.1,3082.6,3.24392486]
[1768082692739,0.44944496,3084.0,3083.3,1.97288808]
[1768082693066,0.44944496,3084.0,3083.3,0.99980518]
[1768082693067,0.255,3083.9,3083.3,0.99980518]
[1768082693378,0.255,3083.9,3083.0,1.00060518]
[1768082693682,2.14399402,3083.9,3083.1,1.02571485]
[1768082693845,0.91574381,3083.7,3083.1,0.02590967]
[1768082694239,0.91574381,3083.7,3083.0,0.0008]
[1768082694576,0.97335126,3083.6,3083.0,0.0008]
[1768082694781,0.91574381,3083.7,3083.0,1.00060518]
[1768082695185,1.88909507,3083.7,3083.0,1.00060518]
[1768082695480,1.88909507,3083.7,3083.1,0.02590967]
[1768082696184,0.97335126,3083.7,3083.1,1.02571485]
[1768082696385,0.91574381,3083.8,3083.3,0.002]
[1768082700277,0.3857528,3084.2,3083.4,0.1297528]
[1768082700278,0.91574381,3083.6,3083.4,0.1297528]
[1768082700478,0.91574381,3083.6,3083.3,0.002]
[1768082701782,0.91574381,3083.9,3083.3,0.002]
[1768082704296,1.43294797,3083.9,3083.3,0.002]
[1768082705059,1.43294797,3083.9,3083.4,0.02590967]
[1768082708196,0.51720416,3083.9,3083.6,0.02590967]
[1768082708402,0.256,3084.2,3083.8,0.02590967]
[1768082708609,0.91740349,3084.2,3083.8,0.02590967]
[1768082708908,0.001,3084.2,3083.6,0.94231316]
[1768082709102,0.001,3084.2,3083.8,0.02590967]
[1768082709272,0.69726446,3084.2,3083.6,0.94231316]
[1768082709472,0.98368804,3084.2,3083.6,0.94231316]
[1768082709673,0.28742358,3084.2,3083.6,0.94231316]
[1768082710902,0.28742358,3084.2,3083.8,0.94031316]
[1768082711214,0.001,3084.2,3083.8,0.91440349]
[1768082712237,0.001,3084.2,3083.8,0.94031316]
[1768082719533,0.001,3084.2,3084.0,0.94031316]
[1768082725002,0.001,3084.2,3084.0,0.02590967]
[1768082725340,0.001,3084.2,3084.0,0.94031316]
[1768082725642,0.001,3084.2,3084.0,1.1067298]
[1768082730845,0.001,3084.2,3084.0,0.19232631]
[1768082731144,0.001,3084.2,3084.0,0.02590967]
[1768082734349,0.001,3084.2,3084.0,0.72402041]
[1768082737648,0.001,3084.2,3084.0,0.02590967]
[1768082745473,0.97374506,3084.8,3084.0,0.02590967]
[1768082745632,0.97374506,3084.6,3084.0,0.02590967]
[1768082745967,1.67286137,3084.5,3084.0,0.02590967]
[1768082746263,0.69911631,3084.4,3084.0,0.02590967]
[1768082750162,0.69911631,3084.4,3084.0,0.93803794]
[1768082750465,0.69911631,3084.3,3084.0,0.93803794]
[1768082750651,0.97374506,3084.7,3084.0,0.93803794]
[1768082755872,0.97374506,3084.7,3084.3,0.002]
[1768082756081,0.001,3084.4,3084.3,0.002]
[1768082763100,0.70055324,3084.4,3084.3,0.002]
[1768082763302,0.001,3084.4,3084.3,0.002]
[1768082763668,0.70055324,3084.4,3084.3,0.002]
[1768082763867,0.001,3084.4,3084.3,0.002]
[1768082764388,0.70055324,3084.4,3084.3,0.002]
[1768082764785,0.001,3084.4,3084.3,0.002]
[1768082765201,0.70055324,3084.4,3084.3,0.002]
[1768082765401,0.001,3084.4,3084.3,0.002]
[1768082765791,0.70055324,3084.4,3084.3,0.002]
[1768082766196,0.001,3084.4,3084.3,0.002]
[1768082766597,0.70055324,3084.4,3084.3,0.002]
[1768082766984,0.001,3084.4,3084.3,0.002]
[1768082767384,0.70055324,3084.4,3084.3,0.002]
[1768082767811,0.001,3084.4,3084.3,0.002]
[1768082768170,0.70055324,3084.4,3084.3,0.002]
[1768082768500,0.001,3084.4,3084.3,0.002]
[1768082769695,0.001,3084.4,3084.3,0.99060076]
[1768082769896,0.70058678,3084.4,3084.3,0.99060076]
[1768082770196,0.69958678,3084.4,3084.3,0.99060076]
[1768082770771,0.69958678,3084.8,3084.3,0.99060076]
[1768082770971,0.69958678,3084.7,3084.3,0.99060076]
[1768082771281,0.69958678,3084.6,3084.3,0.99060076]
[1768082771481,0.69958678,3084.5,3084.3,0.99060076]
[1768082771683,0.255,3084.9,3084.3,0.99060076]
[1768082771882,0.69959013,3084.8,3084.3,0.99060076]
[1768082772083,0.69959013,3084.7,3084.3,0.99060076]
[1768082772283,0.69959013,3084.6,3084.3,0.99060076]
[1768082772495,0.69959013,3084.5,3084.3,0.99060076]
[1768082772706,0.69959013,3084.4,3084.3,0.99060076]
[1768082773370,0.69959013,3084.8,3084.3,0.99060076]
[1768082773575,0.69959013,3084.7,3084.3,0.99060076]
[1768082773906,0.69959013,3084.6,3084.3,0.99060076]
[1768082774103,0.255,3084.9,3084.3,0.99060076]
[1768082774104,0.69959013,3084.5,3084.3,0.99060076]
[1768082774306,0.69959013,3084.4,3084.3,0.99060076]
[1768082774708,0.69959013,3084.8,3084.3,0.99060076]
[1768082774898,0.69959013,3084.7,3084.3,0.99060076]
[1768082775224,0.69959013,3084.6,3084.3,0.99060076]
[1768082775386,0.69959013,3084.5,3084.3,0.99060076]
[1768082775579,0.69959013,3084.4,3084.3,0.99060076]
[1768082776696,0.69959013,3084.8,3084.3,0.99060076]
[1768082776887,0.69959013,3084.7,3084.3,0.002]
[1768082777088,0.69959013,3084.6,3084.3,0.002]
[1768082777289,0.69959013,3084.5,3084.3,0.002]
[1768082777489,0.69959013,3084.4,3084.3,0.002]
[1768082777909,0.69959013,3084.8,3084.3,0.002]
[1768082778112,0.69959013,3084.7,3084.3,0.002]
[1768082778284,0.69959013,3084.6,3084.3,0.002]
[1768082778485,0.69959013,3084.5,3084.3,0.002]
[1768082778708,0.69959013,3084.4,3084.3,0.002]
[1768082778884,0.69959013,3084.8,3084.3,0.002]
[1768082779184,0.69959013,3084.7,3084.3,0.002]
[1768082779385,0.69959013,3084.6,3084.3,0.002]
[1768082779580,0.69959013,3084.5,3084.3,0.002]
[1768082779912,0.69959013,3084.4,3084.3,0.002]
[1768082780307,0.69959013,3084.8,3084.3,0.002]
[1768082780614,0.69959013,3084.7,3084.3,0.002]
[1768082780914,0.69959013,3084.6,3084.3,0.002]
[1768082781120,0.69959013,3084.5,3084.3,0.002]
[1768082781421,0.69959013,3084.4,3084.3,0.002]
[1768082781800,0.001,3084.5,3084.3,0.002]
[1768082782386,0.70059013,3084.5,3084.3,0.002]
[1768082782624,0.69959013,3084.4,3084.3,0.002]
[1768082782982,0.001,3084.5,3084.3,0.002]
[1768082783618,0.70059013,3084.5,3084.3,0.002]
[1768082783822,0.69959013,3084.4,3084.3,0.002]
[1768082785419,0.001,3084.5,3084.3,0.002]
[1768082785921,0.70059013,3084.5,3084.3,0.002]
[1768082786128,0.69959013,3084.4,3084.3,0.002]
[1768082786827,1.64211118,3084.4,3084.0,0.002]
[1768082787124,0.94252105,3084.2,3083.9,0.00080008]
[1768082787424,0.69959013,3084.1,3083.6,0.002]
[1768082787726,0.69959013,3084.1,3083.6,0.99060076]
[1768082787933,0.69959013,3084.0,3083.6,0.99060076]
[1768082788095,0.1651112,3084.3,3083.6,0.99060076]
[1768082788426,1.15935077,3084.2,3083.6,0.99060076]
[1768082788631,0.69886575,3084.1,3083.6,0.99060076]
[1768082792812,0.69886575,3084.1,3083.9,0.002]
[1768082793052,0.69886575,3084.1,3083.6,0.99060076]
[1768082794639,0.69886575,3084.1,3083.6,0.002]
[1768082796035,0.73939621,3084.1,3083.6,0.002]
[1768082796248,0.59220814,3084.1,3083.6,0.002]
[1768082797644,3.24254215,3084.0,3083.6,0.002]
[1768082797827,0.59220814,3084.1,3083.5,0.002]
[1768082797828,4.70360857,3084.1,3083.5,0.002]
[1768082798140,3.9405473,3084.0,3083.5,0.002]